[Event "EYTCC U12 Open 2019"]
[Site "Pardubice"]
[Date "2019.07.13"]
[Round "3.8"]
[White "Piatrenka, Ivan"]
[Black "Giang, Tran Nam"]
[Result "0-1"]
[ECO "D00"]
[WhiteElo "1498"]
[BlackElo "1931"]
[Annotator "NA"]
[PlyCount "102"]
[EventDate "2019.07.11"]
[EventType "swiss"]
[EventCountry "CZE"]
[SourceTitle "playchess.com"]
[Source "ChessBase"]
[SourceQuality "1"]
[WhiteTeam "Belarus"]
[BlackTeam "Hungary"]
[WhiteTeamCountry "BLR"]
[BlackTeamCountry "HUN"]
[TimeControl "40/5400+30:1800+30"]

1. d4 {[%emt 0:00:00]} d5 {[%emt 0:00:00]} 2. Bf4 {[%emt 0:00:00]} Nf6 {[%emt 0:00:00]} 3. e3 {[%emt 0:00:00]} c5 {[%emt 0:00:00]} 4. c3 {[%emt 0:00:25]} Nc6 {[%emt 0:00:12]} 5. Nf3 {[%emt 0:00:47]} Qb6 {[%emt 0:00:09]} 6. Qb3 {[%emt 0:01:15]} c4 {[%emt 0:00:08]} 7. Qc2 {[%emt 0:01:15]} Bf5 {[%emt 0:00:26]} 8. Qc1 {[%emt 0:02:29]} e6 {[%emt 0:01:34]} 9. h3 {[%emt 0:01:37]} Be7 {[%emt 0:02:35]} 10. Nbd2 {[%emt 0:00:33]} O-O {[%emt 0:02:05]} 11. Be2 {[%emt 0:02:53]} h6 {[%emt 0:02:44]} 12. O-O {[%emt 0:03:27]} Rfc8 {[%emt 0:04:19]} 13. Ne5 {[%emt 0:02:08]} Nxe5 {[%emt 0:04:55]} 14. Bxe5 {[%emt 0:00:22]} Qd8 {[%emt 0:03:39]} 15. a4 {[%emt 0:01:59]} b6 {[%emt 0:02:46]} 16. Re1 {[%emt 0:03:14]} a6 {[%emt 0:03:33]} 17. Bf3 {[%emt 0:01:36]} b5 {[%emt 0:08:42]} 18. e4 {[%emt 0:05:03]} Bh7 {[%emt 0:05:33]} 19. Re3 {[%emt 0:09:51]} dxe4 {[%emt 0:07:30]} 20. Nxe4 {[%emt 0:00:21]} Nd5 {[%emt 0:00:13]} 21. Re2 {[%emt 0:02:10]} Qd7 {[%emt 0:11:34]} 22. Qe1 {[%emt 0:23:55]} b4 {[%emt 0:09:59]} 23. g4 {[%emt 0:23:25]} Ra7 {[%emt 0:06:46]} 24. Qd2 {[%emt 0:00:32]} Rb7 {[%emt 0:02:39]} 25. Bg2 {[%emt 0:03:18]} bxc3 {[%emt 0:01:37]} 26. bxc3 {[%emt 0:00:04]} Rb3 {[%emt 0:00:25]} 27. Ree1 {[%emt 0:03:16]} Rc6 {[%emt 0:05:40]} 28. a5 {[%emt 0:01:26]} Qb7 {[%emt 0:01:16]} 29. Nc5 {[%emt 0:01:12]} Bxc5 {[%emt 0:04:16]} 30. dxc5 {[%emt 0:00:00]} Bd3 {[%emt 0:00:54]} 31. Bxd5 {[%emt 0:02:45]} exd5 {[%emt 0:00:08]} 32. Qe3 {[%emt 0:00:17]} Re6 {[%emt 0:01:56]} 33. Qd4 {[%emt 0:00:15]} Qe7 {[%emt 0:01:20]} 34. Qxd5 {[%emt 0:01:20]} Rb5 {[%emt 0:01:14]} 35. Re3 {[%emt 0:00:51]} Rxc5 {[%emt 0:00:29]} 36. Qa8+ {[%emt 0:00:01]} Kh7 {[%emt 0:00:13]} 37. Bd4 Rxe3 {[%emt 0:00:42]} 38. Bxe3 {[%emt 0:00:28]} Re5 {[%emt 0:01:01]} 39. Qf3 {[%emt 0:01:55]} f5 {[%emt 0:01:52]} 40. Ra2 {[%emt 0:02:51]} fxg4 {[%emt 0:00:53]} 41. hxg4 {[%emt 0:30:14]} Qh4 {[%emt 0:30:34]} 42. Qf4 {[%emt 0:00:00]} Rg5 {[%emt 0:00:00]} 43. f3 {[%emt 0:00:00]} Rb5 {[%emt 0:00:00]} 44. Ra1 {[%emt 0:00:00]} Rb2 {[%emt 0:00:00]} 45. Bd2 {[%emt 0:00:00]} Qe7 {[%emt 0:00:00]} 46. Qe3 {[%emt 0:00:00]} Qd6 {[%emt 0:00:00]} 47. Qf4 {[%emt 0:00:00]} Qd5 {[%emt 0:00:00]} 48. g5 {[%emt 0:03:40]} Be2 {[%emt 0:00:00]} 49. g6+ {[%emt 0:00:42]} Kxg6 {[%emt 0:00:00]} 50. Qg4+ {[%emt 0:00:33]} Kh7 {[%emt 0:00:00]} 51. Be3 {[%emt 0:00:33]} Bxf3 {[%emt 0:00:00]} 0-1

[Event "EYTCC U12 Open 2019"]
[Site "Pardubice"]
[Date "2019.07.13"]
[Round "3.9"]
[White "Royal, Shreyas"]
[Black "Cohen, Elad"]
[Result "1/2-1/2"]
[ECO "E04"]
[WhiteElo "1996"]
[BlackElo "2002"]
[Annotator "NA"]
[PlyCount "99"]
[EventDate "2019.07.11"]
[EventType "swiss"]
[EventCountry "CZE"]
[SourceTitle "playchess.com"]
[Source "ChessBase"]
[SourceQuality "1"]
[WhiteTeam "England"]
[BlackTeam "Israel"]
[WhiteTeamCountry "ENG"]
[BlackTeamCountry "ISR"]
[TimeControl "40/5400+30:1800+30"]

1. d4 {[%emt 0:00:00]} Nf6 {[%emt 0:00:00]} 2. c4 {[%emt 0:00:13]} e6 {[%emt 0:00:24]} 3. g3 {[%emt 0:00:26]} d5 {[%emt 0:00:51]} 4. Bg2 {[%emt 0:00:53]} dxc4 {[%emt 0:00:43]} 5. Nf3 {[%emt 0:01:02]} Bb4+ {[%emt 0:00:39]} 6. Bd2 {[%emt 0:00:16]} a5 {[%emt 0:00:44]} 7. O-O {[%emt 0:01:04]} O-O {[%emt 0:00:31]} 8. Qc2 {[%emt 0:00:29]} Bxd2 {[%emt 0:01:35]} 9. Nbxd2 {[%emt 0:01:58]} b5 {[%emt 0:01:01]} 10. a4 {[%emt 0:03:00]} c6 {[%emt 0:02:08]} 11. b3 {[%emt 0:00:38]} cxb3 {[%emt 0:02:23]} 12. Nxb3 {[%emt 0:01:42]} Ba6 {[%emt 0:00:51]} 13. Rfd1 {[%emt 0:07:06]} Qb6 {[%emt 0:11:05]} 14. Ne5 {[%emt 0:02:38]} Rc8 {[%emt 0:06:59]} 15. Nc5 {[%emt 0:00:35]} b4 {[%emt 0:02:40]} 16. e4 {[%emt 0:01:06]} Ra7 {[%emt 0:08:13]} 17. Qb3 {[%emt 0:00:05]} Rf8 {[%emt 0:16:39]} 18. Rac1 {[%emt 0:01:54]} Rc7 {[%emt 0:02:41]} 19. Nxa6 {[%emt 0:02:46]} Qxa6 {[%emt 0:09:10]} 20. d5 {[%emt 0:00:37]} c5 {[%emt 0:01:59]} 21. d6 {[%emt 0:03:01]} Rcc8 {[%emt 0:00:58]} 22. Bf1 {[%emt 0:05:52]} Qa7 {[%emt 0:09:05]} 23. Bc4 {[%emt 0:03:24]} Rfe8 {[%emt 0:10:20]} 24. Bb5 {[%emt 0:01:20]} Red8 {[%emt 0:00:28]} 25. Qe3 {[%emt 0:01:47]} h5 {[%emt 0:05:38]} 26. h3 {[%emt 0:00:52]} Nfd7 {[%emt 0:04:18]} 27. Nd3 {[%emt 0:01:48]} Qb6 {[%emt 0:00:45]} 28. e5 {[%emt 0:00:37]} c4 {[%emt 0:00:25]} 29. Bxc4 {[%emt 0:00:47]} Qxe3 {[%emt 0:00:00]} 30. fxe3 {[%emt 0:00:05]} Nc5 {[%emt 0:00:00]} 31. Bb5 {[%emt 0:00:33]} Ne4 32. Rxc8 {[%emt 0:01:32]} Rxc8 {[%emt 0:01:38]} 33. Nf4 {[%emt 0:01:48]} Nc3 {[%emt 0:00:37]} 34. Ra1 {[%emt 0:02:04]} b3 {[%emt 0:00:44]} 35. Nd3 {[%emt 0:00:28]} f6 {[%emt 0:00:35]} 36. exf6 {[%emt 0:02:19]} gxf6 {[%emt 0:00:01]} 37. d7 {[%emt 0:00:23]} Rd8 {[%emt 0:00:44]} 38. Bc4 {[%emt 0:00:18]} Kf7 {[%emt 0:00:47]} 39. Bxb3 {[%emt 0:02:50]} Nxd7 {[%emt 0:00:22]} 40. Bd1 {[%emt 0:01:29]} Nxd1 41. Rxd1 {[%emt 0:30:06]} Rc8 {[%emt 0:31:08]} 42. Nf4 {[%emt 0:00:18]} Ne5 {[%emt 0:00:00]} 43. Nxh5 {[%emt 0:00:00]} Rc4 {[%emt 0:00:00]} 44. Rf1 {[%emt 0:00:00]} Rxa4 {[%emt 0:00:00]} 45. Nxf6 {[%emt 0:00:00]} Ke7 {[%emt 0:00:00]} 46. h4 {[%emt 0:00:00]} Ra3 {[%emt 0:00:00]} 47. Ng8+ {[%emt 0:00:00]} Ke8 {[%emt 0:00:00]} 48. Nf6+ {[%emt 0:00:00]} Ke7 {[%emt 0:00:00]} 49. Ng8+ {[%emt 0:00:00]} Ke8 {[%emt 0:00:00]} 50. Nf6+ {[%emt 0:00:00]} 1/2-1/2

[Event "EYTCC U12 Open 2019"]
[Site "Pardubice"]
[Date "2019.07.13"]
[Round "3.10"]
[White "Vagman, Roy"]
[Black "Dias, Savin"]
[Result "1-0"]
[ECO "B23"]
[WhiteElo "1941"]
[BlackElo "1840"]
[Annotator "NA"]
[PlyCount "115"]
[EventDate "2019.07.11"]
[EventType "swiss"]
[EventCountry "CZE"]
[SourceTitle "playchess.com"]
[Source "ChessBase"]
[SourceQuality "1"]
[WhiteTeam "Israel"]
[BlackTeam "England"]
[WhiteTeamCountry "ISR"]
[BlackTeamCountry "ENG"]
[TimeControl "40/5400+30:1800+30"]

1. e4 {[%emt 0:00:00]} c5 {[%emt 0:00:00]} 2. Nc3 {[%emt 0:00:22]} g6 {[%emt 0:00:00]} 3. d4 {[%emt 0:00:37]} Bg7 {[%emt 0:00:30]} 4. d5 {[%emt 0:03:28]} d6 {[%emt 0:04:33]} 5. Be2 {[%emt 0:03:42]} a6 {[%emt 0:05:13]} 6. a4 {[%emt 0:00:29]} e5 {[%emt 0:01:10]} 7. f4 {[%emt 0:14:32]} f5 {[%emt 0:05:38]} 8. exf5 {[%emt 0:02:54]} Bxf5 {[%emt 0:00:29]} 9. Bd3 {[%emt 0:00:32]} Ne7 {[%emt 0:02:16]} 10. Nge2 {[%emt 0:02:44]} O-O {[%emt 0:00:37]} 11. O-O {[%emt 0:02:22]} Nd7 {[%emt 0:02:21]} 12. Ng3 {[%emt 0:04:03]} exf4 {[%emt 0:08:00]} 13. Bxf4 {[%emt 0:02:53]} Bd4+ {[%emt 0:08:05]} 14. Kh1 {[%emt 0:00:14]} Bxd3 {[%emt 0:00:25]} 15. Qxd3 {[%emt 0:01:10]} Ne5 {[%emt 0:00:23]} 16. Bxe5 {[%emt 0:09:46]} Bxe5 {[%emt 0:00:38]} 17. Nce4 {[%emt 0:06:53]} Qd7 {[%emt 0:09:31]} 18. Rfe1 {[%emt 0:05:14]} Bxb2 {[%emt 0:15:27]} 19. Rab1 {[%emt 0:00:17]} Bg7 {[%emt 0:00:18]} 20. Rb6 {[%emt 0:01:17]} Nc8 {[%emt 0:03:20]} 21. Rbb1 {[%emt 0:00:10]} Ne7 {[%emt 0:03:22]} 22. Qb3 {[%emt 0:06:11]} Nf5 {[%emt 0:09:48]} 23. Nxf5 {[%emt 0:22:54]} Rxf5 {[%emt 0:00:35]} 24. Ng3 {[%emt 0:00:15]} Rf7 {[%emt 0:01:53]} 25. Re6 {[%emt 0:00:20]} Re8 {[%emt 0:01:34]} 26. Ne4 {[%emt 0:01:54]} Rfe7 {[%emt 0:03:04]} 27. Re1 {[%emt 0:01:13]} Be5 {[%emt 0:07:21]} 28. Ng5 {[%emt 0:03:42]} Rxe6 {[%emt 0:00:37]} 29. Nxe6 {[%emt 0:01:07]} Qf7 {[%emt 0:02:06]} 30. Qd3 {[%emt 0:00:49]} Qd7 {[%emt 0:02:15]} 31. Rf1 {[%emt 0:00:19]} Bg7 {[%emt 0:01:36]} 32. Qf3 {[%emt 0:00:45]} b5 {[%emt 0:00:33]} 33. a5 {[%emt 0:01:13]} Qe7 {[%emt 0:00:55]} 34. g3 {[%emt 0:00:20]} Ra8 {[%emt 0:00:19]} 35. Qg4 {[%emt 0:01:24]} Ra7 {[%emt 0:01:18]} 36. h4 {[%emt 0:00:31]} Qe8 {[%emt 0:00:12]} 37. h5 {[%emt 0:00:41]} Rf7 {[%emt 0:00:10]} 38. Re1 {[%emt 0:00:18]} Qa8 {[%emt 0:00:42]} 39. Qe4 {[%emt 0:00:17]} Qe8 {[%emt 0:01:15]} 40. Kg2 {[%emt 0:00:50]} Re7 {[%emt 0:00:53]} 41. Re3 {[%emt 0:31:11]} gxh5 {[%emt 0:04:27]} 42. Qh4 {[%emt 0:00:00]} Rf7 {[%emt 0:05:55]} 43. Re4 {[%emt 0:00:00]} Qd7 {[%emt 0:02:45]} 44. Qxh5 {[%emt 0:00:00]} Bc3 {[%emt 0:03:52]} 45. Qg5+ {[%emt 0:00:00]} Kh8 {[%emt 0:01:57]} 46. Qh5 {[%emt 0:00:00]} Bd2 {[%emt 0:05:45]} 47. Re2 {[%emt 0:00:00]} Bc1 {[%emt 0:02:37]} 48. c3 {[%emt 0:00:00]} b4 {[%emt 0:01:01]} 49. Qh1 {[%emt 0:00:00]} Qb5 {[%emt 0:00:56]} 50. Qh5 {[%emt 0:00:00]} Qd7 {[%emt 0:01:37]} 51. cxb4 {[%emt 0:00:00]} cxb4 {[%emt 0:00:19]} 52. Rc2 {[%emt 0:00:00]} b3 {[%emt 0:02:59]} 53. Rxc1 {[%emt 0:00:00]} b2 {[%emt 0:00:04]} 54. Rc8+ {[%emt 0:00:00]} Qxc8 {[%emt 0:00:11]} 55. Qxf7 {[%emt 0:00:00]} Qc2+ {[%emt 0:00:55]} 56. Kh3 {[%emt 0:00:00]} Qg6 {[%emt 0:00:16]} 57. Qf8+ {[%emt 0:00:00]} Qg8 {[%emt 0:00:03]} 58. Qf6+ {[%emt 0:00:00]} 1-0

[Event "EYTCC U12 Open 2019"]
[Site "Pardubice"]
[Date "2019.07.13"]
[Round "3.11"]
[White "Merriman, James"]
[Black "Uritsky, Yonathan"]
[Result "0-1"]
[ECO "D92"]
[WhiteElo "1808"]
[BlackElo "2040"]
[Annotator "NA"]
[PlyCount "86"]
[EventDate "2019.07.11"]
[EventType "swiss"]
[EventCountry "CZE"]
[SourceTitle "playchess.com"]
[Source "ChessBase"]
[SourceQuality "1"]
[WhiteTeam "England"]
[BlackTeam "Israel"]
[WhiteTeamCountry "ENG"]
[BlackTeamCountry "ISR"]
[TimeControl "40/5400+30:1800+30"]

1. d4 {[%emt 0:00:00]} Nf6 {[%emt 0:00:00]} 2. c4 {[%emt 0:00:06]} g6 {[%emt 0:00:18]} 3. Nc3 {[%emt 0:00:09]} d5 {[%emt 0:00:26]} 4. Nf3 {[%emt 0:00:09]} Bg7 {[%emt 0:00:37]} 5. Bf4 {[%emt 0:00:14]} O-O {[%emt 0:00:54]} 6. Rc1 {[%emt 0:00:22]} c5 {[%emt 0:01:33]} 7. dxc5 {[%emt 0:00:20]} Qa5 {[%emt 0:01:36]} 8. cxd5 {[%emt 0:05:14]} Rd8 {[%emt 0:06:35]} 9. Qd2 {[%emt 0:07:09]} Nxd5 {[%emt 0:08:39]} 10. Nxd5 {[%emt 0:01:44]} Qxd2+ {[%emt 0:00:18]} 11. Bxd2 {[%emt 0:01:51]} Rxd5 {[%emt 0:00:06]} 12. e4 {[%emt 0:01:48]} Rd8 {[%emt 0:01:20]} 13. b4 {[%emt 0:05:02]} Bg4 {[%emt 0:04:51]} 14. Bb5 {[%emt 0:14:44]} Nc6 {[%emt 0:03:26]} 15. Bxc6 {[%emt 0:01:11]} bxc6 {[%emt 0:00:07]} 16. Bc3 {[%emt 0:02:40]} Bxf3 {[%emt 0:02:17]} 17. gxf3 {[%emt 0:00:27]} a5 {[%emt 0:00:46]} 18. Bxg7 {[%emt 0:03:05]} Kxg7 {[%emt 0:00:07]} 19. Rc2 {[%emt 0:17:48]} axb4 {[%emt 0:00:19]} 20. Ke2 {[%emt 0:01:20]} Ra3 {[%emt 0:01:10]} 21. Rb1 {[%emt 0:00:51]} Rda8 {[%emt 0:01:24]} 22. Rbb2 {[%emt 0:01:58]} Kf6 {[%emt 0:01:32]} 23. Rxb4 {[%emt 0:09:29]} Rxa2 {[%emt 0:00:06]} 24. Rxa2 {[%emt 0:01:53]} Rxa2+ {[%emt 0:00:07]} 25. Ke3 {[%emt 0:00:11]} Ra3+ {[%emt 0:00:52]} 26. Kd4 {[%emt 0:00:55]} Rxf3 {[%emt 0:02:06]} 27. Rb6 {[%emt 0:01:24]} Rxf2 {[%emt 0:00:44]} 28. Rxc6+ {[%emt 0:00:06]} e6 {[%emt 0:00:56]} 29. Rc7 {[%emt 0:01:45]} Rxh2 {[%emt 0:00:10]} 30. e5+ {[%emt 0:00:23]} Kg7 {[%emt 0:00:21]} 31. c6 {[%emt 0:00:22]} Rc2 {[%emt 0:00:26]} 32. Kd3 {[%emt 0:00:28]} Rc5 {[%emt 0:00:14]} 33. Kd4 {[%emt 0:00:05]} Rc1 {[%emt 0:00:13]} 34. Rc8 {[%emt 0:00:31]} h5 {[%emt 0:00:17]} 35. Ke4 {[%emt 0:00:12]} g5 {[%emt 0:01:19]} 36. c7 {[%emt 0:00:13]} h4 {[%emt 0:00:38]} 37. Kf3 {[%emt 0:00:05]} Rc4 {[%emt 0:00:26]} 38. Kg2 {[%emt 0:00:33]} g4 {[%emt 0:00:07]} 39. Kh2 {[%emt 0:00:25]} Rc2+ {[%emt 0:00:08]} 40. Kh1 {[%emt 0:00:22]} g3 {[%emt 0:00:46]} 41. Rd8 {[%emt 0:30:18]} Rxc7 {[%emt 0:30:39]} 42. Rd4 {[%emt 0:00:05]} Rc2 {[%emt 0:02:08]} 43. Rxh4 {[%emt 0:00:24]} Rh2+ {[%emt 0:00:19]} 0-1

[Event "EYTCC U12 Open 2019"]
[Site "Pardubice"]
[Date "2019.07.13"]
[Round "3.12"]
[White "Tsirilman, Guy"]
[Black "Thatte, Nishchal"]
[Result "0-1"]
[ECO "C00"]
[WhiteElo "1792"]
[BlackElo "1686"]
[Annotator "NA"]
[PlyCount "154"]
[EventDate "2019.07.11"]
[EventType "swiss"]
[EventCountry "CZE"]
[SourceTitle "playchess.com"]
[Source "ChessBase"]
[SourceQuality "1"]
[WhiteTeam "Israel"]
[BlackTeam "England"]
[WhiteTeamCountry "ISR"]
[BlackTeamCountry "ENG"]
[TimeControl "40/5400+30:1800+30"]

1. e4 {[%emt 0:00:00]} e6 {[%emt 0:00:00]} 2. d3 {[%emt 0:00:37]} d5 {[%emt 0:00:00]} 3. Nd2 {[%emt 0:01:07]} c5 {[%emt 0:00:10]} 4. Ngf3 {[%emt 0:01:41]} Nc6 {[%emt 0:00:28]} 5. g3 {[%emt 0:00:37]} Bd6 {[%emt 0:00:35]} 6. Bg2 {[%emt 0:02:10]} Nge7 {[%emt 0:00:10]} 7. O-O {[%emt 0:00:44]} O-O {[%emt 0:01:36]} 8. Re1 {[%emt 0:03:25]} a6 {[%emt 0:08:14]} 9. c3 {[%emt 0:03:41]} b5 {[%emt 0:03:31]} 10. e5 {[%emt 0:05:58]} Bc7 {[%emt 0:00:19]} 11. Nb3 {[%emt 0:00:28]} Bb6 {[%emt 0:04:39]} 12. Be3 {[%emt 0:03:20]} c4 {[%emt 0:04:19]} 13. dxc4 {[%emt 0:01:45]} bxc4 {[%emt 0:02:56]} 14. Nbd4 {[%emt 0:00:17]} Rb8 {[%emt 0:01:52]} 15. Rb1 {[%emt 0:01:25]} Bc7 {[%emt 0:04:56]} 16. Bg5 {[%emt 0:02:11]} Bd7 {[%emt 0:03:49]} 17. Nxc6 {[%emt 0:01:26]} Bxc6 {[%emt 0:00:02]} 18. Nd4 {[%emt 0:00:25]} Bd7 {[%emt 0:00:58]} 19. Qg4 {[%emt 0:03:24]} Qe8 {[%emt 0:04:48]} 20. h4 {[%emt 0:08:31]} Ng6 {[%emt 0:03:42]} 21. Nf3 {[%emt 0:07:46]} h6 {[%emt 0:11:31]} 22. Be3 {[%emt 0:09:48]} Kh8 {[%emt 0:02:25]} 23. h5 {[%emt 0:02:29]} Ne7 {[%emt 0:00:24]} 24. Nh4 {[%emt 0:07:14]} Nf5 {[%emt 0:04:18]} 25. Nxf5 {[%emt 0:01:22]} exf5 {[%emt 0:00:02]} 26. Qd1 {[%emt 0:00:12]} Be6 {[%emt 0:00:12]} 27. Bc5 {[%emt 0:01:10]} Rg8 {[%emt 0:00:45]} 28. Qd4 {[%emt 0:00:55]} Qd7 {[%emt 0:02:13]} 29. Red1 {[%emt 0:01:27]} Rge8 {[%emt 0:02:05]} 30. f4 {[%emt 0:02:18]} Red8 {[%emt 0:03:02]} 31. Rd2 {[%emt 0:02:05]} Qc6 {[%emt 0:04:38]} 32. Qf2 {[%emt 0:03:28]} Rd7 {[%emt 0:03:11]} 33. Rbd1 {[%emt 0:01:09]} Rbd8 {[%emt 0:01:27]} 34. Be3 {[%emt 0:01:25]} Kg8 {[%emt 0:02:51]} 35. Bf3 {[%emt 0:03:29]} Rb8 {[%emt 0:01:15]} 36. Qg2 {[%emt 0:00:27]} Rbd8 {[%emt 0:00:01]} 37. Kh2 {[%emt 0:00:51]} Bb6 {[%emt 0:01:36]} 38. Bd4 {[%emt 0:01:27]} Bc5 {[%emt 0:04:15]} 39. Qf2 {[%emt 0:00:42]} Be7 {[%emt 0:00:48]} 40. Rg1 {[%emt 0:01:00]} Rb8 {[%emt 0:04:07]} 41. Qg2 {[%emt 0:30:39]} Kh7 {[%emt 0:31:58]} 42. g4 {[%emt 0:01:55]} fxg4 {[%emt 0:00:06]} 43. Bxg4 {[%emt 0:00:12]} Bxg4 {[%emt 0:00:14]} 44. Qxg4 {[%emt 0:00:09]} g6 {[%emt 0:00:32]} 45. Rdg2 {[%emt 0:00:57]} g5 {[%emt 0:01:04]} 46. fxg5 {[%emt 0:06:27]} Bxg5 {[%emt 0:00:02]} 47. Qf5+ {[%emt 0:00:13]} Kg8 {[%emt 0:00:19]} 48. Be3 {[%emt 0:00:58]} Qe6 {[%emt 0:00:21]} 49. Bxg5 {[%emt 0:02:52]} Qxf5 {[%emt 0:00:56]} 50. Bf6+ {[%emt 0:00:05]} Qg5 {[%emt 0:00:02]} 51. Bxg5 {[%emt 0:00:28]} hxg5 {[%emt 0:00:06]} 52. Rxg5+ {[%emt 0:00:11]} Kh8 {[%emt 0:00:31]} 53. R5g2 {[%emt 0:03:52]} Rdb7 {[%emt 0:00:08]} 54. Rb1 {[%emt 0:01:04]} Rb6 {[%emt 0:01:01]} 55. Kg3 {[%emt 0:02:41]} a5 {[%emt 0:03:38]} 56. a4 {[%emt 0:00:00]} Rb3 {[%emt 0:00:00]} 57. Rc2 {[%emt 0:00:00]} d4 {[%emt 0:00:00]} 58. Kf4 {[%emt 0:00:00]} dxc3 {[%emt 0:00:00]} 59. Ke4 {[%emt 0:00:00]} cxb2 {[%emt 0:00:00]} 60. Rxc4 {[%emt 0:00:00]} Ra3 {[%emt 0:00:00]} 61. Rc2 {[%emt 0:00:00]} Rxa4+ {[%emt 0:00:00]} 62. Kf5 {[%emt 0:00:00]} Rab4 {[%emt 0:00:00]} 63. Rc5 {[%emt 0:00:00]} a4 {[%emt 0:00:00]} 64. e6 {[%emt 0:00:00]} fxe6+ {[%emt 0:00:00]} 65. Kg6 {[%emt 0:00:00]} a3 {[%emt 0:00:00]} 66. Ra5 {[%emt 0:00:00]} Rc4 {[%emt 0:00:00]} 67. Rxa3 {[%emt 0:00:00]} Rc1 {[%emt 0:00:00]} 68. Rxb2 {[%emt 0:00:00]} Rg1+ {[%emt 0:00:00]} 69. Kh6 {[%emt 0:00:00]} Rxb2 {[%emt 0:00:00]} 70. Ra8+ {[%emt 0:00:00]} Rg8 {[%emt 0:00:00]} 71. Ra7 {[%emt 0:00:00]} Rgb8 {[%emt 0:00:00]} 72. Rg7 {[%emt 0:00:00]} R2b7 {[%emt 0:00:00]} 73. Rg6 {[%emt 0:00:00]} Rh7+ {[%emt 0:00:00]} 74. Kg5 {[%emt 0:00:00]} Rg7 {[%emt 0:00:00]} 75. Kf6 {[%emt 0:00:00]} Rf8+ {[%emt 0:00:00]} 76. Kg5 {[%emt 0:00:00]} Rxg6+ {[%emt 0:00:00]} 77. Kxg6 {[%emt 0:00:00]} e5 {[%emt 0:00:00]} 0-1

[Event "EYTCC U12 Open 2019"]
[Site "Pardubice"]
[Date "2019.07.13"]
[Round "3.13"]
[White "Finek, Vaclav"]
[Black "Tarhan, Adar"]
[Result "0-1"]
[ECO "C50"]
[WhiteElo "2043"]
[BlackElo "1972"]
[Annotator "NA"]
[PlyCount "114"]
[EventDate "2019.07.11"]
[EventType "swiss"]
[EventCountry "CZE"]
[SourceTitle "playchess.com"]
[Source "ChessBase"]
[SourceQuality "1"]
[WhiteTeam "Czech Republic"]
[BlackTeam "Turkey"]
[WhiteTeamCountry "CZE"]
[BlackTeamCountry "TUR"]
[TimeControl "40/5400+30:1800+30"]

1. e4 {[%emt 0:00:00]} e5 {[%emt 0:00:00]} 2. Nf3 {[%emt 0:00:00]} Nc6 {[%emt 0:00:00]} 3. Bc4 {[%emt 0:00:00]} Bc5 {[%emt 0:00:00]} 4. d3 {[%emt 0:00:00]} Nf6 {[%emt 0:00:00]} 5. c3 {[%emt 0:00:03]} d6 {[%emt 0:00:30]} 6. O-O {[%emt 0:00:27]} O-O {[%emt 0:00:20]} 7. Nbd2 {[%emt 0:00:30]} a6 {[%emt 0:00:47]} 8. Bb3 {[%emt 0:00:06]} Ba7 {[%emt 0:00:21]} 9. h3 {[%emt 0:00:26]} Ne7 {[%emt 0:02:16]} 10. Re1 {[%emt 0:01:45]} Ng6 {[%emt 0:01:09]} 11. Nf1 {[%emt 0:01:06]} Nh5 {[%emt 0:08:28]} 12. Be3 {[%emt 0:04:01]} Nhf4 {[%emt 0:01:45]} 13. Kh2 {[%emt 0:08:59]} Kh8 {[%emt 0:04:15]} 14. Bxa7 {[%emt 0:05:37]} Rxa7 {[%emt 0:00:05]} 15. Ne3 {[%emt 0:01:12]} f5 {[%emt 0:08:08]} 16. Nxf5 {[%emt 0:03:06]} Bxf5 {[%emt 0:00:26]} 17. exf5 {[%emt 0:00:13]} Rxf5 {[%emt 0:00:22]} 18. g3 {[%emt 0:03:52]} Qf6 {[%emt 0:01:03]} 19. gxf4 {[%emt 0:07:43]} Rxf4 {[%emt 0:00:10]} 20. Re3 {[%emt 0:02:54]} Ra8 {[%emt 0:00:46]} 21. Qe2 {[%emt 0:17:26]} Rf8 {[%emt 0:01:57]} 22. Bd1 {[%emt 0:01:21]} Nh4 {[%emt 0:01:20]} 23. Nxh4 {[%emt 0:00:16]} Rxf2+ {[%emt 0:00:05]} 24. Ng2 {[%emt 0:00:07]} Qf4+ {[%emt 0:01:27]} 25. Rg3 {[%emt 0:04:06]} Rxe2 {[%emt 0:00:13]} 26. Bxe2 {[%emt 0:00:10]} Qd2 {[%emt 0:00:24]} 27. Rf3 {[%emt 0:03:42]} Rxf3 {[%emt 0:00:44]} 28. Bxf3 {[%emt 0:00:48]} c6 {[%emt 0:00:17]} 29. Rf1 {[%emt 0:00:37]} g6 {[%emt 0:00:25]} 30. Bg4 {[%emt 0:01:12]} Kg7 {[%emt 0:00:44]} 31. Be6 {[%emt 0:00:19]} Qxb2 {[%emt 0:00:07]} 32. Rf7+ {[%emt 0:00:22]} Kh6 {[%emt 0:00:09]} 33. h4 {[%emt 0:00:54]} e4 {[%emt 0:04:57]} 34. Re7 {[%emt 0:07:00]} exd3 {[%emt 0:02:03]} 35. Bg8 {[%emt 0:00:18]} g5 {[%emt 0:03:16]} 36. Rxh7+ {[%emt 0:08:37]} Kg6 {[%emt 0:00:05]} 37. Rd7 {[%emt 0:00:22]} Qxc3 {[%emt 0:01:49]} 38. Bh7+ {[%emt 0:05:43]} Kh6 {[%emt 0:00:34]} 39. hxg5+ {[%emt 0:00:31]} Kxg5 {[%emt 0:00:07]} 40. Bxd3 {[%emt 0:00:54]} Qxd3 {[%emt 0:00:14]} 41. Rxb7 {[%emt 0:30:11]} Qd4 {[%emt 0:31:02]} 42. Rb3 {[%emt 0:00:17]} c5 {[%emt 0:00:31]} 43. Rg3+ {[%emt 0:01:00]} Kf6 {[%emt 0:00:09]} 44. Rf3+ {[%emt 0:06:21]} Ke7 {[%emt 0:00:53]} 45. Kg3 {[%emt 0:00:55]} Qg7+ {[%emt 0:00:20]} 46. Kh3 {[%emt 0:00:29]} Kd7 {[%emt 0:01:24]} 47. Nf4 {[%emt 0:00:31]} Qh7+ {[%emt 0:02:05]} 48. Kg4 {[%emt 0:00:55]} Qg8+ {[%emt 0:00:11]} 49. Kh3 {[%emt 0:00:21]} Qxa2 {[%emt 0:00:08]} 50. Nh5 {[%emt 0:00:54]} a5 {[%emt 0:00:17]} 51. Nf6+ {[%emt 0:00:49]} Kc6 {[%emt 0:00:04]} 52. Kg3 {[%emt 0:00:50]} a4 {[%emt 0:00:14]} 53. Ne4 {[%emt 0:00:15]} a3 {[%emt 0:00:15]} 54. Nc3 {[%emt 0:00:12]} Qg8+ {[%emt 0:00:08]} 55. Kf2 {[%emt 0:00:08]} a2 {[%emt 0:00:04]} 56. Nxa2 {[%emt 0:00:15]} Qxa2+ {[%emt 0:00:04]} 57. Kg3 {[%emt 0:00:16]} c4 0-1